[Event "*** Titled Tuesday Blitz"]
[Site "Chess.com"]
[Date "2020.11.10"]
[Round "9"]
[White "VladimirBugayev"]
[Black "jens1102"]
[Result "0-1"]
[WhiteElo "2247"]
[BlackElo "2380"]
[TimeControl "180+1"]
[EndTime "11:52:43 PST"]
[Termination "jens1102 won on time"]

1. e4 {[%clk 0:02:59.1]} 1... e5 {[%clk 0:02:53.3]} 2. Nf3 {[%clk 0:02:58.2]}
2... Nc6 {[%clk 0:02:52.1]} 3. d4 {[%clk 0:02:57.7]} 3... exd4 {[%clk
0:02:51.2]} 4. Nxd4 {[%clk 0:02:56.9]} 4... Nf6 {[%clk 0:02:51]} 5. Nxc6 {[%clk
0:02:56.6]} 5... bxc6 {[%clk 0:02:51.9]} 6. e5 {[%clk 0:02:57.2]} 6... Qe7
{[%clk 0:02:51.5]} 7. Qe2 {[%clk 0:02:57.4]} 7... Nd5 {[%clk 0:02:51.9]} 8. h4
{[%clk 0:02:57.2]} 8... d6 {[%clk 0:02:48.7]} 9. c4 {[%clk 0:02:56.3]} 9... Nb6
{[%clk 0:02:47.7]} 10. exd6 {[%clk 0:02:55.4]} 10... cxd6 {[%clk 0:02:46.6]} 11.
Bg5 {[%clk 0:02:52.1]} 11... Qxe2+ {[%clk 0:02:46]} 12. Bxe2 {[%clk 0:02:52.1]}
12... Be6 {[%clk 0:02:46.3]} 13. b3 {[%clk 0:02:51.5]} 13... Be7 {[%clk
0:02:45]} 14. Nc3 {[%clk 0:02:29.3]} 14... h6 {[%clk 0:02:40.7]} 15. Bxe7 {[%clk
0:02:28.6]} 15... Kxe7 {[%clk 0:02:41.6]} 16. O-O-O {[%clk 0:02:28.9]} 16...
Rhd8 {[%clk 0:02:36.1]} 17. Rhe1 {[%clk 0:02:28.6]} 17... Nd7 {[%clk 0:02:31.2]}
18. f4 {[%clk 0:02:16.6]} 18... Nf6 {[%clk 0:02:20.9]} 19. g4 {[%clk 0:02:04.8]}
19... Kf8 {[%clk 0:02:17.1]} 20. f5 {[%clk 0:01:56.7]} 20... Bc8 {[%clk
0:02:13.6]} 21. Bf3 {[%clk 0:01:44.7]} 21... Bb7 {[%clk 0:02:03.9]} 22. Re3
{[%clk 0:01:17.1]} 22... d5 {[%clk 0:01:57.6]} 23. g5 {[%clk 0:01:15.5]} 23...
d4 {[%clk 0:01:55.6]} 24. Red3 {[%clk 0:01:12.3]} 24... hxg5 {[%clk 0:01:55.7]}
25. hxg5 {[%clk 0:01:12.2]} 25... Nh7 {[%clk 0:01:55.9]} 26. g6 {[%clk
0:01:10.6]} 26... Ng5 {[%clk 0:01:51.4]} 27. Na4 {[%clk 0:01:01.4]} 27... Nxf3
{[%clk 0:01:46.5]} 28. Rxf3 {[%clk 0:01:01.6]} 28... c5 {[%clk 0:01:47.1]} 29.
Rh3 {[%clk 0:01:02.2]} 29... Rac8 {[%clk 0:01:43.3]} 30. Rh8+ {[%clk 0:00:59.1]}
30... Ke7 {[%clk 0:01:42.9]} 31. Rxd8 {[%clk 0:00:58.4]} 31... Kxd8 {[%clk
0:01:40.8]} 32. f6 {[%clk 0:00:56.2]} 32... fxg6 {[%clk 0:01:06.3]} 33. fxg7
{[%clk 0:00:55.4]} 33... Ke7 {[%clk 0:01:05.2]} 34. Nxc5 {[%clk 0:00:50]} 34...
Bc6 {[%clk 0:00:35.9]} 35. Rxd4 {[%clk 0:00:49.5]} 35... Kf7 {[%clk 0:00:35.4]}
36. Nd3 {[%clk 0:00:35.7]} 36... Kxg7 {[%clk 0:00:34.1]} 37. Ne5 {[%clk
0:00:36.4]} 37... Kf6 {[%clk 0:00:27.7]} 38. Nxc6 {[%clk 0:00:24.9]} 38... Rxc6
{[%clk 0:00:28.6]} 39. Kd2 {[%clk 0:00:20]} 39... Re6 {[%clk 0:00:27.1]} 40. c5
{[%clk 0:00:17.2]} 40... Ke5 {[%clk 0:00:26.1]} 41. Kd3 {[%clk 0:00:14.1]} 41...
Rf6 {[%clk 0:00:22.5]} 42. Kc4 {[%clk 0:00:13]} 42... g5 {[%clk 0:00:20.5]} 43.
Rd5+ {[%clk 0:00:09.4]} 43... Ke4 {[%clk 0:00:19.4]} 44. Rxg5 {[%clk 0:00:09.1]}
44... Rf1 {[%clk 0:00:18.5]} 45. a4 {[%clk 0:00:07.3]} 45... a5 {[%clk 0:00:13]}
46. Rg8 {[%clk 0:00:06.2]} 46... Rc1+ {[%clk 0:00:12.3]} 47. Kb5 {[%clk
0:00:06.4]} 47... Rc3 {[%clk 0:00:12.5]} 48. Rg4+ {[%clk 0:00:01.3]} 48... Kd5
{[%clk 0:00:12.4]} 0-1

[Event "*** Titled Tuesday Blitz"]
[Site "Chess.com"]
[Date "2020.11.10"]
[Round "9"]
[White "CraiggoryC"]
[Black "niki_2003"]
[Result "1-0"]
[WhiteElo "2202"]
[BlackElo "1952"]
[TimeControl "180+1"]
[EndTime "11:52:46 PST"]
[Termination "CraiggoryC won by resignation"]

1. e4 {[%clk 0:02:13]} 1... c5 {[%clk 0:02:58.2]} 2. Nf3 {[%clk 0:02:12.3]} 2...
d6 {[%clk 0:02:56.8]} 3. d4 {[%clk 0:02:13]} 3... cxd4 {[%clk 0:02:57.1]} 4.
Nxd4 {[%clk 0:02:13.7]} 4... Nf6 {[%clk 0:02:57.6]} 5. Nc3 {[%clk 0:02:14.2]}
5... g6 {[%clk 0:02:58]} 6. Be3 {[%clk 0:02:14.3]} 6... Bg7 {[%clk 0:02:58.3]}
7. f3 {[%clk 0:02:14.9]} 7... O-O {[%clk 0:02:57.7]} 8. Qd2 {[%clk 0:02:15.5]}
8... Nc6 {[%clk 0:02:57.8]} 9. Bc4 {[%clk 0:02:15.4]} 9... Bd7 {[%clk
0:02:57.4]} 10. O-O-O {[%clk 0:02:14.7]} 10... Rc8 {[%clk 0:02:56.9]} 11. Bb3
{[%clk 0:02:14]} 11... Ne5 {[%clk 0:02:52.5]} 12. h4 {[%clk 0:02:14.5]} 12...
Nc4 {[%clk 0:02:52]} 13. Bxc4 {[%clk 0:02:13.8]} 13... Rxc4 {[%clk 0:02:51.7]}
14. h5 {[%clk 0:02:14.5]} 14... Nxh5 {[%clk 0:02:45.8]} 15. g4 {[%clk
0:02:14.5]} 15... Nf4 {[%clk 0:02:34.6]} 16. Qh2 {[%clk 0:01:57.5]} 16... h6
{[%clk 0:02:18.1]} 17. Bxf4 {[%clk 0:01:34.4]} 17... e5 {[%clk 0:02:08.4]} 18.
Bxh6 {[%clk 0:01:29.7]} 18... Rxd4 {[%clk 0:02:04.3]} 19. Bxg7 {[%clk 0:00:59]}
19... Qg5+ {[%clk 0:02:02.1]} 20. Kb1 {[%clk 0:00:58]} 20... Kxg7 {[%clk
0:02:02.2]} 21. Qh7+ {[%clk 0:00:32.6]} 21... Kf6 {[%clk 0:02:01]} 22. Rxd4
{[%clk 0:00:31.5]} 22... exd4 {[%clk 0:02:00.9]} 23. Nd5+ {[%clk 0:00:31]} 23...
Ke6 {[%clk 0:01:55.3]} 24. Qg7 {[%clk 0:00:18.8]} 24... Rc8 {[%clk 0:01:43.2]}
25. f4 {[%clk 0:00:18.2]} 25... Ba4 {[%clk 0:00:48.3]} 26. fxg5 {[%clk
0:00:16.4]} 26... Bxc2+ {[%clk 0:00:48.1]} 27. Ka1 {[%clk 0:00:16.2]} 27... Bxe4
{[%clk 0:00:48.2]} 28. Qf6+ {[%clk 0:00:15.3]} 28... Kxd5 {[%clk 0:00:46.9]} 29.
Rd1 {[%clk 0:00:14.5]} 29... d3 {[%clk 0:00:44.7]} 30. Qxf7+ {[%clk 0:00:13.4]}
30... Kd4 {[%clk 0:00:43.9]} 31. Qf6+ {[%clk 0:00:13.6]} 31... Ke3 {[%clk
0:00:42.7]} 32. Qxd6 {[%clk 0:00:12.8]} 32... Ke2 {[%clk 0:00:39.8]} 33. Rg1
{[%clk 0:00:11.8]} 33... d2 {[%clk 0:00:28.7]} 34. Qh2+ {[%clk 0:00:11]} 34...
Ke3 {[%clk 0:00:26.7]} 35. Qg3+ {[%clk 0:00:11]} 35... Bf3 {[%clk 0:00:19.9]}
36. Qe5+ {[%clk 0:00:09.6]} 36... Kf2 {[%clk 0:00:20.2]} 37. Qd4+ {[%clk
0:00:09.2]} 37... Ke2 {[%clk 0:00:18.1]} 38. Rb1 {[%clk 0:00:09]} 38... Rc1
{[%clk 0:00:16.7]} 39. Qe5+ {[%clk 0:00:09.1]} 39... Kf2 {[%clk 0:00:15.9]} 40.
Qf4 {[%clk 0:00:08.5]} 40... d1=Q {[%clk 0:00:14.4]} 41. Rxc1 {[%clk 0:00:06.6]}
41... Qd3 {[%clk 0:00:09.5]} 42. Qh2+ {[%clk 0:00:06]} 42... Bg2 {[%clk
0:00:08.3]} 43. Qg1+ {[%clk 0:00:04.2]} 43... Kg3 {[%clk 0:00:07.7]} 44. Rc3
{[%clk 0:00:04.6]} 44... Qxc3 {[%clk 0:00:07]} 45. bxc3 {[%clk 0:00:05.5]} 45...
Kxg4 {[%clk 0:00:07.3]} 46. Kb2 {[%clk 0:00:06.4]} 46... Kg3 {[%clk 0:00:07.1]}
47. Qxa7 {[%clk 0:00:07.3]} 47... Bf3 {[%clk 0:00:06.8]} 48. Qb6 {[%clk
0:00:08.2]} 48... Kg4 {[%clk 0:00:07]} 49. Qf6 {[%clk 0:00:08.6]} 49... Be4
{[%clk 0:00:06.5]} 50. c4 {[%clk 0:00:08.8]} 50... Bf5 {[%clk 0:00:07.2]} 51.
Kc3 {[%clk 0:00:09.4]} 51... Kh4 {[%clk 0:00:07.2]} 52. Kd4 {[%clk 0:00:10.3]}
52... Kh5 {[%clk 0:00:07.1]} 53. c5 {[%clk 0:00:11.2]} 53... Bc8 {[%clk
0:00:04.9]} 54. Ke5 {[%clk 0:00:11.5]} 1-0

[Event "*** Titled Tuesday Blitz"]
[Site "Chess.com"]
[Date "2020.11.10"]
[Round "9"]
[White "annacramling"]
[Black "beto-betun"]
[Result "0-1"]
[WhiteElo "2023"]
[BlackElo "2196"]
[TimeControl "180+1"]
[EndTime "11:52:53 PST"]
[Termination "beto-betun won on time"]

1. d4 {[%clk 0:03:00.9]} 1... Nf6 {[%clk 0:02:50.4]} 2. c4 {[%clk 0:02:59]} 2...
g6 {[%clk 0:02:49.6]} 3. Nc3 {[%clk 0:02:59.2]} 3... Bg7 {[%clk 0:02:48.9]} 4.
e4 {[%clk 0:02:59.1]} 4... d6 {[%clk 0:02:42.8]} 5. h3 {[%clk 0:02:53.6]} 5...
O-O {[%clk 0:02:42.1]} 6. Bg5 {[%clk 0:02:49.4]} 6... Nbd7 {[%clk 0:02:39.4]} 7.
Nf3 {[%clk 0:02:48.7]} 7... e5 {[%clk 0:02:38]} 8. d5 {[%clk 0:02:48.5]} 8... h6
{[%clk 0:02:36.5]} 9. Be3 {[%clk 0:02:47.7]} 9... b6 {[%clk 0:02:35.3]} 10. Be2
{[%clk 0:02:46]} 10... Nc5 {[%clk 0:02:35.3]} 11. Qc2 {[%clk 0:02:45.4]} 11...
a5 {[%clk 0:02:34]} 12. g4 {[%clk 0:02:44.2]} 12... Bd7 {[%clk 0:02:27.2]} 13.
O-O-O {[%clk 0:02:42.9]} 13... a4 {[%clk 0:02:23.7]} 14. Rdg1 {[%clk 0:02:20.4]}
14... a3 {[%clk 0:02:21.7]} 15. b3 {[%clk 0:02:15.6]} 15... c6 {[%clk
0:02:19.3]} 16. g5 {[%clk 0:02:00.5]} 16... hxg5 {[%clk 0:02:17.5]} 17. dxc6
{[%clk 0:01:57.7]} 17... Bxc6 {[%clk 0:02:14.9]} 18. Nxg5 {[%clk 0:01:57.8]}
18... b5 {[%clk 0:01:42.7]} 19. cxb5 {[%clk 0:01:50.9]} 19... Bd7 {[%clk
0:01:43.3]} 20. h4 {[%clk 0:01:46.9]} 20... Rc8 {[%clk 0:01:43.8]} 21. Bc4
{[%clk 0:01:14.8]} 21... d5 {[%clk 0:01:40.9]} 22. exd5 {[%clk 0:00:59.5]} 22...
Bf5 {[%clk 0:01:36.1]} 23. Qd2 {[%clk 0:00:51.4]} 23... Nfe4 {[%clk 0:01:21.3]}
24. Ngxe4 {[%clk 0:00:45.7]} 24... Nxe4 {[%clk 0:01:22.2]} 25. Nxe4 {[%clk
0:00:37.7]} 25... Bxe4 {[%clk 0:01:23.1]} 26. Rh3 {[%clk 0:00:16.8]} 26... Bxd5
{[%clk 0:01:11.7]} 27. Bg5 {[%clk 0:00:06.7]} 27... f6 {[%clk 0:01:04.8]} 28.
Be3 {[%clk 0:00:04.2]} 28... Bxc4 {[%clk 0:00:58.4]} 29. bxc4 {[%clk 0:00:03.9]}
29... Rxc4+ {[%clk 0:00:57.5]} 30. Kd1 {[%clk 0:00:04.3]} 30... Qxd2+ {[%clk
0:00:51.9]} 31. Kxd2 {[%clk 0:00:05.2]} 31... Rd8+ {[%clk 0:00:49.2]} 32. Ke2
{[%clk 0:00:05]} 32... Rc2+ {[%clk 0:00:47.8]} 33. Kf3 {[%clk 0:00:04.8]} 33...
Rxa2 {[%clk 0:00:47.5]} 34. b6 {[%clk 0:00:04.7]} 34... Rb2 {[%clk 0:00:45.6]}
35. Ra1 {[%clk 0:00:04.7]} 35... a2 {[%clk 0:00:43.3]} 36. Rhh1 {[%clk
0:00:03.4]} 36... f5 {[%clk 0:00:40.6]} 37. Rhc1 {[%clk 0:00:02.7]} 37... f4
{[%clk 0:00:38.9]} 38. Bc5 {[%clk 0:00:02.3]} 38... e4+ {[%clk 0:00:39]} 39. Kg2
{[%clk 0:00:01.6]} 39... e3 {[%clk 0:00:37.2]} 40. Kf1 {[%clk 0:00:02]} 40...
Rxf2+ {[%clk 0:00:34.8]} 41. Ke1 {[%clk 0:00:02.7]} 41... Bxa1 {[%clk
0:00:31.2]} 42. Rxa1 {[%clk 0:00:02.9]} 42... Rdd2 {[%clk 0:00:23.4]} 43. b7
{[%clk 0:00:03]} 43... Rb2 {[%clk 0:00:21.7]} 44. b8=Q+ {[%clk 0:00:02.7]} 44...
Rxb8 {[%clk 0:00:21.7]} 45. Bd4 {[%clk 0:00:03]} 45... Rd8 {[%clk 0:00:13.2]}
46. Be5 {[%clk 0:00:03.4]} 46... Rdd2 {[%clk 0:00:12.9]} 47. Bc3 {[%clk
0:00:03.1]} 47... Rh2 {[%clk 0:00:11.9]} 48. Bxd2 {[%clk 0:00:03]} 48... Rxd2
{[%clk 0:00:12.8]} 49. Kf1 {[%clk 0:00:02.1]} 49... Kf7 {[%clk 0:00:12.9]} 50.
Ke1 {[%clk 0:00:02.4]} 50... Kf6 {[%clk 0:00:13.2]} 51. Kf1 {[%clk 0:00:02.9]}
51... Kf5 {[%clk 0:00:13.6]} 52. Rc1 {[%clk 0:00:03.2]} 52... Kg4 {[%clk
0:00:13.2]} 53. Ke1 {[%clk 0:00:03.7]} 53... f3 {[%clk 0:00:12.9]} 54. Kf1
{[%clk 0:00:03.7]} 54... Kxh4 {[%clk 0:00:13]} 55. Ke1 {[%clk 0:00:04.2]} 55...
Kg3 {[%clk 0:00:13.2]} 56. Kf1 {[%clk 0:00:04.5]} 56... Rf2+ {[%clk 0:00:12]}
57. Ke1 {[%clk 0:00:03.4]} 57... Rg2 {[%clk 0:00:12.3]} 0-1

[Event "*** Titled Tuesday Blitz"]
[Site "Chess.com"]
[Date "2020.11.10"]
[Round "9"]
[White "kamilianin235"]
[Black "IsuruAlahakoon"]
[Result "1-0"]
[WhiteElo "2205"]
[BlackElo "2395"]
[TimeControl "180+1"]
[EndTime "11:52:54 PST"]
[Termination "kamilianin235 won on time"]

1. e4 {[%clk 0:03:00.9]} 1... d5 {[%clk 0:02:58.7]} 2. exd5 {[%clk 0:03:00]}
2... Qxd5 {[%clk 0:02:59.6]} 3. Nc3 {[%clk 0:02:56.5]} 3... Qa5 {[%clk
0:02:59.3]} 4. b4 {[%clk 0:02:55.5]} 4... Qxb4 {[%clk 0:02:57.8]} 5. Rb1 {[%clk
0:02:54.9]} 5... Qd6 {[%clk 0:02:57.6]} 6. Nf3 {[%clk 0:02:52.7]} 6... c6 {[%clk
0:02:57.5]} 7. d4 {[%clk 0:02:51.3]} 7... Nf6 {[%clk 0:02:56.3]} 8. g3 {[%clk
0:02:49.7]} 8... Nbd7 {[%clk 0:02:50.5]} 9. Bg2 {[%clk 0:02:44.9]} 9... e6
{[%clk 0:02:46.1]} 10. O-O {[%clk 0:02:41.4]} 10... Qc7 {[%clk 0:02:43.7]} 11.
Re1 {[%clk 0:02:32.6]} 11... Be7 {[%clk 0:02:39.3]} 12. Bf4 {[%clk 0:02:30]}
12... Qd8 {[%clk 0:02:38.4]} 13. Qe2 {[%clk 0:02:16.4]} 13... O-O {[%clk
0:02:37.5]} 14. h4 {[%clk 0:02:08.5]} 14... Nd5 {[%clk 0:02:37]} 15. Nxd5 {[%clk
0:02:05.9]} 15... cxd5 {[%clk 0:02:37.9]} 16. c4 {[%clk 0:02:01.7]} 16... dxc4
{[%clk 0:02:35.4]} 17. Qxc4 {[%clk 0:02:00.7]} 17... Nb6 {[%clk 0:02:35.2]} 18.
Qb3 {[%clk 0:01:57.6]} 18... Nd5 {[%clk 0:02:34.6]} 19. Bd2 {[%clk 0:01:54.3]}
19... b6 {[%clk 0:02:34.2]} 20. Ne5 {[%clk 0:01:52.7]} 20... Bb7 {[%clk
0:02:28.6]} 21. Rbc1 {[%clk 0:01:51.7]} 21... Rc8 {[%clk 0:02:24]} 22. Rxc8
{[%clk 0:01:49.6]} 22... Qxc8 {[%clk 0:02:24.9]} 23. Rc1 {[%clk 0:01:48.8]}
23... Qa8 {[%clk 0:02:24.8]} 24. a4 {[%clk 0:01:36.4]} 24... Rd8 {[%clk
0:02:13.8]} 25. a5 {[%clk 0:01:33.3]} 25... f6 {[%clk 0:01:58.5]} 26. Nd3 {[%clk
0:01:29.6]} 26... Kf7 {[%clk 0:01:51.6]} 27. Re1 {[%clk 0:01:21.4]} 27... Rd6
{[%clk 0:01:44.3]} 28. Nb4 {[%clk 0:01:12.1]} 28... Nxb4 {[%clk 0:01:42.4]} 29.
Bxb4 {[%clk 0:01:05.6]} 29... Bxg2 {[%clk 0:01:29.6]} 30. Bxd6 {[%clk
0:00:59.5]} 30... Bd5 {[%clk 0:01:28.5]} 31. Qa3 {[%clk 0:00:56.7]} 31... Bh1
{[%clk 0:01:20.7]} 32. Kf1 {[%clk 0:00:45.7]} 32... Qg2+ {[%clk 0:01:04.5]} 33.
Ke2 {[%clk 0:00:43.1]} 33... Qe4+ {[%clk 0:01:04.2]} 34. Kf1 {[%clk 0:00:36.5]}
34... Qg2+ {[%clk 0:00:56.4]} 35. Ke2 {[%clk 0:00:35.9]} 35... Bxd6 {[%clk
0:00:48.9]} 36. Qxd6 {[%clk 0:00:34.8]} 36... Qe4+ {[%clk 0:00:46.9]} 37. Kd2
{[%clk 0:00:33.6]} 37... Qd5 {[%clk 0:00:23.7]} 38. Qxd5 {[%clk 0:00:30.4]}
38... Bxd5 {[%clk 0:00:24.6]} 39. axb6 {[%clk 0:00:29.9]} 39... axb6 {[%clk
0:00:25.2]} 40. Rb1 {[%clk 0:00:29.6]} 40... Kg6 {[%clk 0:00:23.9]} 41. Rxb6
{[%clk 0:00:29.2]} 41... Kf5 {[%clk 0:00:23.5]} 42. Ke3 {[%clk 0:00:28.1]} 42...
h6 {[%clk 0:00:20.5]} 43. Rb7 {[%clk 0:00:27.3]} 43... g5 {[%clk 0:00:19.3]} 44.
hxg5 {[%clk 0:00:25.3]} 44... hxg5 {[%clk 0:00:20.2]} 45. f3 {[%clk 0:00:25.2]}
45... g4 {[%clk 0:00:18.2]} 46. f4 {[%clk 0:00:24.6]} 46... Kg6 {[%clk
0:00:15.7]} 47. Rb8 {[%clk 0:00:24.2]} 47... f5 {[%clk 0:00:15.4]} 48. Rb6
{[%clk 0:00:23.1]} 48... Kf6 {[%clk 0:00:15.3]} 49. Kd3 {[%clk 0:00:23.3]} 49...
Be4+ {[%clk 0:00:14.8]} 50. Kc4 {[%clk 0:00:22.9]} 50... Bd5+ {[%clk 0:00:15.1]}
51. Kc5 {[%clk 0:00:23.1]} 51... Ke7 {[%clk 0:00:12.5]} 52. Ra6 {[%clk
0:00:21.7]} 52... Kd7 {[%clk 0:00:12.4]} 53. Ra7+ {[%clk 0:00:21.5]} 53... Ke8
{[%clk 0:00:11.5]} 54. Kd6 {[%clk 0:00:21.7]} 54... Kf8 {[%clk 0:00:11.1]} 55.
Re7 {[%clk 0:00:21.2]} 1-0

[Event "*** Titled Tuesday Blitz"]
[Site "Chess.com"]
[Date "2020.11.10"]
[Round "9"]
[White "Paladin61"]
[Black "DishonorOnYourCow"]
[Result "0-1"]
[WhiteElo "2515"]
[BlackElo "2399"]
[TimeControl "180+1"]
[EndTime "11:52:54 PST"]
[Termination "DishonorOnYourCow won on time"]

1. b3 {[%clk 0:02:59.3]} 1... d5 {[%clk 0:02:59.1]} 2. Bb2 {[%clk 0:02:59.2]}
2... c5 {[%clk 0:02:57.8]} 3. e3 {[%clk 0:02:59.2]} 3... Nf6 {[%clk 0:02:58.3]}
4. Nf3 {[%clk 0:02:59.2]} 4... g6 {[%clk 0:02:58.8]} 5. Bb5+ {[%clk 0:02:53.9]}
5... Bd7 {[%clk 0:02:55.5]} 6. Bxf6 {[%clk 0:02:51.3]} 6... exf6 {[%clk
0:02:53.7]} 7. Bxd7+ {[%clk 0:02:51.2]} 7... Qxd7 {[%clk 0:02:54.6]} 8. O-O
{[%clk 0:02:50.4]} 8... Nc6 {[%clk 0:02:52.8]} 9. c3 {[%clk 0:02:50]} 9... Bd6
{[%clk 0:02:50.5]} 10. d4 {[%clk 0:02:49.3]} 10... cxd4 {[%clk 0:02:49.6]} 11.
cxd4 {[%clk 0:02:46.3]} 11... f5 {[%clk 0:02:47.3]} 12. Nc3 {[%clk 0:02:37.7]}
12... Bb4 {[%clk 0:02:34.7]} 13. Rc1 {[%clk 0:02:31.3]} 13... O-O {[%clk
0:02:34]} 14. Ng5 {[%clk 0:02:04.9]} 14... Ba3 {[%clk 0:02:20.4]} 15. Rb1 {[%clk
0:02:02.1]} 15... Be7 {[%clk 0:02:20.6]} 16. Nh3 {[%clk 0:01:58.5]} 16... Rac8
{[%clk 0:02:16.2]} 17. Nf4 {[%clk 0:01:54.9]} 17... Nb4 {[%clk 0:02:11.3]} 18.
Qd2 {[%clk 0:01:36.1]} 18... Bg5 {[%clk 0:02:07.4]} 19. Nce2 {[%clk 0:01:28.1]}
19... Nc6 {[%clk 0:01:53]} 20. Rfc1 {[%clk 0:01:22.1]} 20... Ne7 {[%clk
0:01:36.4]} 21. Qa5 {[%clk 0:01:09.7]} 21... a6 {[%clk 0:01:02.8]} 22. g3 {[%clk
0:00:58.8]} 22... Rxc1+ {[%clk 0:00:55.1]} 23. Rxc1 {[%clk 0:00:57.5]} 23... Rc8
{[%clk 0:00:56]} 24. Rxc8+ {[%clk 0:00:45.5]} 24... Qxc8 {[%clk 0:00:52.1]} 25.
Nxd5 {[%clk 0:00:45.1]} 25... Nxd5 {[%clk 0:00:42.2]} 26. Qxd5 {[%clk
0:00:44.7]} 26... Qc2 {[%clk 0:00:42.5]} 27. Nf4 {[%clk 0:00:22.1]} 27... Bxf4
{[%clk 0:00:41.9]} 28. gxf4 {[%clk 0:00:22.1]} 28... Qxa2 {[%clk 0:00:42.3]} 29.
Qxb7 {[%clk 0:00:21.4]} 29... a5 {[%clk 0:00:38.8]} 30. Qb8+ {[%clk 0:00:17.9]}
30... Kg7 {[%clk 0:00:38.7]} 31. Qe5+ {[%clk 0:00:17.5]} 31... Kg8 {[%clk
0:00:38.8]} 32. h3 {[%clk 0:00:11]} 32... Qxb3 {[%clk 0:00:37.8]} 33. Qxa5
{[%clk 0:00:10]} 33... Qb1+ {[%clk 0:00:37.9]} 34. Kh2 {[%clk 0:00:09.9]} 34...
Qc2 {[%clk 0:00:37.4]} 35. Qa8+ {[%clk 0:00:09.3]} 35... Kg7 {[%clk 0:00:37.1]}
36. Qg2 {[%clk 0:00:08.2]} 36... Qd2 {[%clk 0:00:34.5]} 37. Kg3 {[%clk
0:00:07.4]} 37... Qd1 {[%clk 0:00:30.1]} 38. Kh2 {[%clk 0:00:04.6]} 38... h5
{[%clk 0:00:29.7]} 39. Qd5 {[%clk 0:00:04.2]} 39... Qd2 {[%clk 0:00:27.8]} 40.
Kg2 {[%clk 0:00:04.1]} 40... h4 {[%clk 0:00:20.8]} 41. Qe5+ {[%clk 0:00:04]}
41... Kh7 {[%clk 0:00:19.4]} 42. Qe7 {[%clk 0:00:04]} 42... Kg7 {[%clk
0:00:18.1]} 43. Qxh4 {[%clk 0:00:03.7]} 43... Qd3 {[%clk 0:00:15.8]} 44. Qg3
{[%clk 0:00:03.7]} 44... Qe4+ {[%clk 0:00:15.8]} 45. Qf3 {[%clk 0:00:04]} 45...
Qd3 {[%clk 0:00:16.2]} 46. Qd5 {[%clk 0:00:04.2]} 46... g5 {[%clk 0:00:13.9]}
47. fxg5 {[%clk 0:00:03.9]} 47... Kg6 {[%clk 0:00:14.2]} 48. h4 {[%clk
0:00:03.3]} 48... Kh5 {[%clk 0:00:14.3]} 49. Qxf7+ {[%clk 0:00:03.4]} 49... Kxh4
{[%clk 0:00:14.5]} 50. g6 {[%clk 0:00:02.7]} 50... Qe4+ {[%clk 0:00:13.8]} 51.
Kh2 {[%clk 0:00:03]} 51... Qf3 {[%clk 0:00:10.5]} 52. Qf6+ {[%clk 0:00:02.5]}
52... Kh5 {[%clk 0:00:09.5]} 0-1

[Event "*** Titled Tuesday Blitz"]
[Site "Chess.com"]
[Date "2020.11.10"]
[Round "9"]
[White "Yashasd1995"]
[Black "124chess"]
[Result "0-1"]
[WhiteElo "2560"]
[BlackElo "2723"]
[TimeControl "180+1"]
[EndTime "11:52:55 PST"]
[Termination "124chess won by resignation"]

1. b3 {[%clk 0:03:00.9]} 1... d5 {[%clk 0:02:58.8]} 2. Bb2 {[%clk 0:02:56.5]}
2... Bg4 {[%clk 0:02:58.7]} 3. d4 {[%clk 0:02:54.5]} 3... Nf6 {[%clk 0:02:57.2]}
4. Nd2 {[%clk 0:02:55.1]} 4... e6 {[%clk 0:02:55.4]} 5. Ngf3 {[%clk 0:02:56]}
5... Bd6 {[%clk 0:02:55.4]} 6. e3 {[%clk 0:02:56]} 6... O-O {[%clk 0:02:55.2]}
7. Be2 {[%clk 0:02:53.2]} 7... Nbd7 {[%clk 0:02:54.8]} 8. O-O {[%clk 0:02:48.1]}
8... c6 {[%clk 0:02:55.1]} 9. c4 {[%clk 0:02:44.7]} 9... Qe7 {[%clk 0:02:54.1]}
10. Ne5 {[%clk 0:02:43.2]} 10... Bxe2 {[%clk 0:02:53.2]} 11. Qxe2 {[%clk
0:02:44.1]} 11... Rfd8 {[%clk 0:02:53.1]} 12. f4 {[%clk 0:02:42.1]} 12... a5
{[%clk 0:02:50]} 13. a3 {[%clk 0:02:41.4]} 13... c5 {[%clk 0:02:48.2]} 14. Nd3
{[%clk 0:02:10.5]} 14... Ne4 {[%clk 0:02:40.8]} 15. Rfd1 {[%clk 0:02:06.4]}
15... Nxd2 {[%clk 0:02:37]} 16. Rxd2 {[%clk 0:02:07.3]} 16... cxd4 {[%clk
0:02:35.2]} 17. exd4 {[%clk 0:01:36.5]} 17... Nf6 {[%clk 0:02:28.2]} 18. g3
{[%clk 0:01:27.5]} 18... Ne4 {[%clk 0:02:26.2]} 19. Rc2 {[%clk 0:01:27.4]} 19...
f5 {[%clk 0:02:25.9]} 20. c5 {[%clk 0:01:24.7]} 20... Bc7 {[%clk 0:02:25.1]} 21.
b4 {[%clk 0:01:22.3]} 21... Qe8 {[%clk 0:02:23.6]} 22. Nf2 {[%clk 0:01:18.7]}
22... axb4 {[%clk 0:02:16.8]} 23. axb4 {[%clk 0:01:18.4]} 23... Rxa1+ {[%clk
0:02:17.7]} 24. Bxa1 {[%clk 0:01:16.9]} 24... Ra8 {[%clk 0:02:18.4]} 25. Ra2
{[%clk 0:01:10]} 25... h6 {[%clk 0:02:05.3]} 26. Nxe4 {[%clk 0:00:58.8]} 26...
fxe4 {[%clk 0:02:00.8]} 27. Bc3 {[%clk 0:00:57.7]} 27... Kh7 {[%clk 0:01:56.9]}
28. Rxa8 {[%clk 0:00:50.5]} 28... Qxa8 {[%clk 0:01:57.8]} 29. b5 {[%clk
0:00:50.8]} 29... Qa3 {[%clk 0:01:52.7]} 30. Qb2 {[%clk 0:00:49.8]} 30... Qa4
{[%clk 0:01:48.5]} 31. b6 {[%clk 0:00:35]} 31... Qd1+ {[%clk 0:01:45.9]} 32. Kg2
{[%clk 0:00:31.6]} 32... Qf3+ {[%clk 0:01:32.4]} 33. Kg1 {[%clk 0:00:31.5]}
33... Bd8 {[%clk 0:01:30.4]} 34. Be1 {[%clk 0:00:21.3]} 34... e3 {[%clk
0:01:21.3]} 35. c6 {[%clk 0:00:18.6]} 35... bxc6 {[%clk 0:00:53.7]} 36. b7
{[%clk 0:00:17.7]} 36... Bc7 {[%clk 0:00:50.6]} 37. Qc2+ {[%clk 0:00:17.5]}
37... Kg8 {[%clk 0:00:35.3]} 38. Qxc6 {[%clk 0:00:16.9]} 38... e2 {[%clk
0:00:21.3]} 39. Qxe6+ {[%clk 0:00:14.1]} 39... Kh7 {[%clk 0:00:17]} 40. Qf5+
{[%clk 0:00:12.7]} 40... Kg8 {[%clk 0:00:17.2]} 41. Bf2 {[%clk 0:00:11.7]} 41...
Qb3 {[%clk 0:00:14.8]} 42. Qc8+ {[%clk 0:00:10.7]} 42... Kh7 {[%clk 0:00:14.9]}
43. Qxc7 {[%clk 0:00:10]} 43... Qd1+ {[%clk 0:00:14.3]} 44. Kg2 {[%clk
0:00:10.3]} 44... Qf1+ {[%clk 0:00:14.5]} 45. Kf3 {[%clk 0:00:10.1]} 45... e1=Q
{[%clk 0:00:14.9]} 46. Qc2+ {[%clk 0:00:09.6]} 46... Qe4+ {[%clk 0:00:12.9]} 47.
Qxe4+ {[%clk 0:00:06.3]} 47... dxe4+ {[%clk 0:00:13.8]} 48. Kxe4 {[%clk
0:00:07]} 48... Qb1+ {[%clk 0:00:14.1]} 49. Ke5 {[%clk 0:00:05.8]} 49... Qxb7
{[%clk 0:00:15]} 50. d5 {[%clk 0:00:05.9]} 50... Qb2+ {[%clk 0:00:14.6]} 51. Bd4
{[%clk 0:00:06.8]} 51... Qe2+ {[%clk 0:00:14.7]} 52. Kf5 {[%clk 0:00:06.1]}
52... g6+ {[%clk 0:00:11.8]} 53. Kf6 {[%clk 0:00:06.3]} 53... Qe4 {[%clk
0:00:12]} 54. Be5 {[%clk 0:00:05.4]} 54... Qxd5 {[%clk 0:00:12.1]} 55. f5 {[%clk
0:00:05.9]} 55... Qd8+ {[%clk 0:00:10.8]} 56. Ke6 {[%clk 0:00:06]} 56... Qc8+
{[%clk 0:00:10.5]} 0-1